Workbook

Sheet Introduction
B3: KSU-Beef Farm Management Guide Budgets
B5: Excel spreadsheets for beef cattle enterprise budgeting to evaluate potential income, costs and profitability
L8: Version- 12.7.2020
B28: INTRODUCTION
B29: The Kansas State University cost-return budgets were developed to serve as a barometer of profitability for various livestock industry enterprises. These budgets are NOT intended to represent any one operation. Each individual operation should adjust key inputs to reflect their own situation.
B31: INSTRUCTIONS FOR THE USER:
B32: Be sure to "Enable Content" and "Enable Macros" for the spreadsheet to function correctly. Blue values are inputs that should be changed from the defaults to match your operation. Black values are automatically calculated.
B37: FOR MORE INFORMATION:
B38: Developed by:
B40: Robin Reid | G40: Glynn T. Tonsor, Ph.D.
B41: Extension Associate | G41: Agricultural Economist
B42: Department of Agricultural Economics | G42: Department of Agricultural Economics
B43: Kansas State University | G43: Kansas State University
B44: robinreid@ksu.edu | G44: gtonsor@k-state.edu
B45: 785-532-0964 | G45: 785-532-1518
B47: ACKNOWLEDGEMENTS:
B48: The developers would like to thank the K-State Beef Team for their contributions: Dr. Sandy Johnson, Dr. Dale Blasi, Dr. Joel DeRouchey, Dr. Jaymelynn Farney, Dr. Justin Waggoner, and Dr. Bob Weaber www.KSUBeef.org
B52: Copyright 2020 AgManager.info, K-State Department of Agricultural Economics

Sheet Prices
A1: 2021 Production Year
A2: Five Years Out Prices
B3: =A1 -> 2021 Production Year | C3: =A2 -> Five Years Out Prices
B4: (as of Dec. 7th, 2020) | C4: (Oct. 2020 USDA)
A5: Corn ($/bu) | B5: 4.25 | C5: 3.55 | D5: http://www.usda.gov/oce/commodity/projections/
A6: Soybean Meal ($/ton) | B6: 380 | C6: 341 | D6: http://www.usda.gov/oce/commodity/projections/
A7: DDGS ($/ton) | B7: 210 | C7: 175.4117647 | D7: Adjust off of Corn Price
A9: Silage ($/ton) | B9: 34 | C9: 28.4 | D9: Equal to 8X the corn price
A10: Prairie Hay ($/ton) | B10: 70 | C10: 58.47058824 | D10: Adjust off of Corn Price
A11: Alfalfa ($/ton) | B11: 160 | C11: 133.6470588 | D11: Adjust off of Corn Price
A12: Pasture Rental ($/acre) | B12: 20 | C12: 22 | D12: Current price *1.10
A13: Crop Residue ($/acre) | B13: 15 | C13: 16.5 | D13: Current price *1.10
A14: Beef Cow Mineral ($/ton) | B14: 850 | C14: 935 | D14: Current price *1.10
A15: Other Beef Mineral ($/ton) | B15: 600 | C15: 660 | D15: Current price *1.10
A17: Oct. Heifer Calf Price ($/cwt)* | B17: 149.72 | C17: 146.7062906 | D17: Adjust off of Steer Calf price
A18: Oct. Steer Calves Price ($/cwt)* | B18: 165.93 | C18: 162.59 | D18: http://www.usda.gov/oce/commodity/projections/
A19: March Feeder Steers ($/cwt)** | B19: 145.64 | C19: 138.2015 | D19: http://www.usda.gov/oce/commodity/projections/
A20: July Feeder Steers ($/cwt)*** | B20: 142.3 | C20: 145.12
A21: Dec. Fed Cattle ($/cwt)**** | B21: 116.605 | C21: 114.61 | D21: http://www.usda.gov/oce/commodity/projections/
A22: Beef Cull cow ($/cwt) | B22: 54.25 | C22: 53.3218344 | D22: Fed cattle change imposed
A23: One-Year-Out March Feeder Steers ($/cwt)****** | B23: 149.72 | C23: =C19 -> 138.2015
A25: * This a predicted October price for the budget year
A26: ** This is a predicted price for the production year
A27: ***This is a predicted price for the production year
A28: ****This a predicted price for a Dec. sale of a fed animal
A29: ******This is a predicted one-year-out March feeder steer price used in the backgrounding budget

Sheet Feed
B1: CATTLE RATIONS TO SET FEED AND GRAZING COSTS
B3: Cow-Calf Feed Requirements | C3: (per cow unit + 16% of developing heifer + 4% of bull) | H3: Stocker Feed Requirements | I3: (per animal unit)
C4: Qty | D4: Unit | I4: Qty | J4: Unit
B5: Pasture | C5: 9.5 | D5: total acres per year | H5: Pasture | I5: 2.5 | J5: total acres for feeding period
B6: Crop Residue Grazing | C6: 2 | D6: total acres per year | H6: Crop Residue | I6: 0 | J6: total acres for feeding period
B7: Prairie/Brome Hay | C7: 2.25 | D7: total tons per year | H7: Prairie/Brome Hay | I7: 0 | J7: total tons for feeding period
B8: Silage | C8: 0 | D8: total tons per year | H8: Silage | I8: 0 | J8: total tons for feeding period
B9: Alfalfa | C9: 0 | D9: total tons per year | H9: Alfalfa | I9: 0 | J9: total tons for feeding period
B10: Total Harvested Forage | C10: =SUM(C7:C9) -> 2.25 | D10: total tons per year | H10: Total Harvested Forage | I10: =SUM(I7:I9) -> 0 | J10: total tons for feeding period
B11: Corn | C11: =0.16*(3*198) -> 95.04 | D11: total lbs per year | H11: Corn | I11: 0 | J11: total pounds for feeding period
B12: DDG's | C12: 738 | D12: total lbs per year | H12: DDG's | I12: 0 | J12: total pounds for feeding period
B13: Soybean Meal | C13: 0 | D13: total lbs per year | H13: Soybean Meal | I13: 0 | J13: total pounds for feeding period
B14: Total Grain/Protein Supplements | C14: =SUM(C11:C13) -> 833.04 | D14: total lbs per year | H14: Total Grain/Protein Supplements | I14: =SUM(I11:I13) -> 0 | J14: total pounds for feeding period
B15: Salt and Mineral | C15: 100 | D15: total lbs per year | H15: Salt and Mineral | I15: =0.1*120 -> 12 | J15: total pounds for feeding period
B18: Backgrounding Feed Requirements | C18: (per animal unit) | H18: Finishing Feed Requirements | I18: (per animal unit)
C19: Qty | D19: Unit | I19: Qty | J19: Unit
B20: Pasture | C20: 0 | D20: total acres for feeding period | H20: Prairie/Brome Hay | I20: 1.5 | J20: lbs/day
B21: Crop Residue | C21: 0 | D21: total acres for feeding period | H21: Silage | I21: 0 | J21: lbs/day
B22: Prairie/Brome Hay | C22: 3.5 | D22: lbs/day | H22: Alfalfa | I22: 1.5 | J22: lbs/day
B23: Silage | C23: 0 | D23: lbs/day | H23: Total Harvested Forage | I23: =SUM(I20:I22) -> 3 | J23: lbs/day
B24: Alfalfa | C24: 3.5 | D24: lbs/day | H24: Corn | I24: 17 | J24: lbs/day
B25: Total Harvested Forage | C25: =SUM(C22:C24) -> 7 | D25: lbs/day | H25: DDG's | I25: 5 | J25: lbs/day
B26: Corn | C26: 7 | D26: lbs/day | H26: Soybean Meal | I26: 0 | J26: lbs/day
B27: DDG's | C27: 7 | D27: lbs/day | H27: Total Grain/Protein Supplements | I27: =SUM(I24:I26) -> 22 | J27: lbs/day
B28: Soybean Meal | C28: 0 | D28: lbs/day | H28: Salt and Mineral | I28: 0.5 | J28: lbs/day
B29: Total Grain/Protein Supplements | C29: =SUM(C26:C28) -> 14 | D29: lbs/day
B30: Salt and Mineral | C30: 0.3 | D30: lbs/day

Sheet Cow-Calf
A1: KSU Beef Cow-Calf Budget | C1: 2021 Production Year | G1: =IF(C1=Prices!B3,TEXT(Prices!B4,"MMM-YYYY"),TEXT(Prices!C4,"MMM-YYYY")) -> (as of Dec. 7th, 2020)
L2: Click on "2021 Production Year" to change to "Five Years Out Prices"
A3: Production Efficiency Information
A4: Weaning Percentage | B4: 0.91
A5: Cow Replacement Percentage | B5: 0.16
A7: Revenue | B7: Price | C7: Unit | E7: Qty | F7: Unit | J7: Total per Year per Cow
A8: Weaned Calf Sale | B8: =0.5*(IF(C1=Prices!A1,Prices!B18,Prices!C18))+0.5*(IF(C1=Prices!A1,Prices!B17,Prices!C17)) -> 157.825 | C8: per cwt | D8: x | E8: 550 | F8: lbs | G8: x | H8: =B4 -> 0.91 | I8: = | J8: =B8*(E8/100)*H8 -> 789.914125
A9: Cull Cows | B9: =IF(C1=Prices!A1,Prices!B22,Prices!C22) -> 54.25 | C9: per cwt | D9: x | E9: 1250 | F9: lbs | G9: x | H9: =B5 -> 0.16 | I9: = | J9: =B9*(E9/100)*H9 -> 108.5
A10: Other Income
A11: Gross Income | J11: =SUM(J8:J10) -> 898.414125
A13: Variable Costs
A14: Pasture | B14: =IF(C1=Prices!A1, Prices!B12,Prices!C12) -> 20 | C14: per acre | D14: x | E14: =Feed!C5 -> 9.5 | F14: total acres | I14: = | J14: =B14*E14 -> 190
A15: Crop Residue | B15: =IF(C1=Prices!A1, Prices!B13,Prices!C13) -> 15 | C15: per acre | D15: x | E15: =Feed!C6 -> 2 | F15: total acres | I15: = | J15: =B15*E15 -> 30
A16: Harvested Forage | B16: =IF(C1=Prices!A1,(((Feed!C7/Feed!C10)*Prices!B10)+((Feed!C8/Feed!C10)*Prices!B9)+((Feed!C9/Feed!C10)*Prices!B11)),((Feed!C7/Feed!C10)*Prices!C10)+((Feed!C8/Feed!C10)*Prices!C9)+((Feed!C9/Feed!C10)*Prices!C11)) -> 70 | C16: per ton | D16: x | E16: =Feed!C10 -> 2.25 | F16: total tons | I16: = | J16: =B16*E16 -> 157.5
A17: Grain/Protein Supplements | B17: =IF(C1=Prices!A1,(((Feed!C13/Feed!C14)*Prices!B6)+((Feed!C12/Feed!C14)*Prices!B7)+((Feed!C11/Feed!C14)*(Prices!B5*2000)/56)),(((Feed!C13/Feed!C14)*Prices!C6)+((Feed!C12/Feed!C14)*Prices!C7)+((Feed!C11/Feed!C14)*(Prices!C5*2000)/56))) -> 203.3584393 | C17: per ton | D17: x | E17: =Feed!C14 -> 833.04 | F17: total lbs | I17: = | J17: =(B17/2000)*E17 -> 84.70285714
A18: Mineral | B18: =IF(C1=Prices!A1,Prices!B14,Prices!C14) -> 850 | C18: per ton | D18: x | E18: =Feed!C15 -> 100 | F18: total lbs | I18: = | J18: =(B18/2000)*E18 -> 42.5
A19: Other Feed | B19: 0 | C19: per unit | D19: x | E19: 0 | F19: units | I19: = | J19: =B19*E19 -> 0
A20: Labor | B20: 20 | C20: per hour | D20: x | E20: 8 | F20: total hours | I20: = | J20: =B20*E20 -> 160
A21: Vet Medicine/Drugs | J21: 35
A22: Replacement Females | B22: =((IF(C1=Prices!A1, Prices!B17,Prices!C17))/100)*E8 -> 823.46 | C22: per head | D22: x | E22: =B5 -> 0.16 | F22: hd | I22: = | J22: =B22*E22 -> 131.7536
A23: Annual Bull Charge or A.I. | J23: =((6000-1700)/4)*0.04 -> 43
A24: Other Livestock Breeding/Marketing | J24: 22
A25: Utilities | J25: 14
A26: Gas, Fuel, Oil | J26: 24
A27: Machinery, Facility/Equip. Repairs | J27: 50
A28: Cash Interest Paid | J28: 28
A29: Other variable costs | J29: 8
A30: Total Variable Costs | J30: =SUM(J14:J29) -> 1020.456457
A32: Fixed Costs
A33: Depreciation | J33: 50
A34: Taxes | J34: 12
A35: Farm/Livestock Insurance | J35: 14
A36: Opportunity Cost of Investment | J36: 135
A37: Other fixed costs | J37: 0
A38: Total Fixed Costs | J38: =SUM(J33:J36) -> 211
A40: Total Costs | J40: =J30+J38 -> 1231.456457
A42: Income Over Variable Costs | J42: =J11-J30 -> -122.0423321
A43: Income Over Total Costs | J43: =J11-J40 -> -333.0423321
A46: Kansas State University, Department of Agricultural Economics - www.agmanager.info
A47: Publication: AM-FMG-CowCalf | I47: =TEXT(Introduction!L8,"MMM. DD, YYYY") -> Version- 12.7.2020
A49: KSU Beef Cow-Calf Budget
A93: Kansas State University, Department of Agricultural Economics - www.agmanager.info
A94: Publication: AM-FMG-CowCalf | I94: =I47 -> Version- 12.7.2020
A96: KSU Beef Cow-Calf Budget
A97: Budget Assumptions
A99: Cow-Calf Feed Requirements | B99: (per cow unit + 16% of developing heifer + 4% of bull)
B100: Qty | C100: Unit
A101: Pasture | B101: =Feed!C5 -> 9.5 | C101: total acres per year
A102: Crop Residue Grazing | B102: =Feed!C6 -> 2 | C102: total acres per year
A103: Prairie/Brome Hay | B103: =Feed!C7 -> 2.25 | C103: total tons per year
A104: Silage | B104: =Feed!C8 -> 0 | C104: total tons per year
A105: Alfalfa | B105: =Feed!C9 -> 0 | C105: total tons per year
A106: Total Harvested Forage | B106: =Feed!C10 -> 2.25 | C106: total tons per year
A107: Corn | B107: =Feed!C11 -> 95.04 | C107: total lbs per year
A108: DDG's | B108: =Feed!C12 -> 738 | C108: total lbs per year
A109: Soybean Meal | B109: =Feed!C13 -> 0 | C109: total lbs per year
A110: Total Grain/Protein Supplements | B110: =Feed!C14 -> 833.04 | C110: total lbs per year
A111: Salt and Mineral | B111: =Feed!C15 -> 100 | C111: total lbs per year
A116: Default Cow-Calf Prices
B117: =Prices!A1 -> 2021 Production Year | C117: Five Years Out
A118: =Prices!A5 -> Corn ($/bu) | B118: =Prices!B5 -> 4.25 | C118: =Prices!C5 -> 3.55
A119: =Prices!A6 -> Soybean Meal ($/ton) | B119: =Prices!B6 -> 380 | C119: =Prices!C6 -> 341
A120: =Prices!A7 -> DDGS ($/ton) | B120: =Prices!B7 -> 210 | C120: =Prices!C7 -> 175.4117647
A121: =Prices!A9 -> Silage ($/ton) | B121: =Prices!B9 -> 34 | C121: =Prices!C9 -> 28.4
A122: =Prices!A10 -> Prairie Hay ($/ton) | B122: =Prices!B10 -> 70 | C122: =Prices!C10 -> 58.47058824
A123: =Prices!A11 -> Alfalfa ($/ton) | B123: =Prices!B11 -> 160 | C123: =Prices!C11 -> 133.6470588
A124: =Prices!A12 -> Pasture Rental ($/acre) | B124: =Prices!B12 -> 20 | C124: =Prices!C12 -> 22
A125: =Prices!A13 -> Crop Residue ($/acre) | B125: =Prices!B13 -> 15 | C125: =Prices!C13 -> 16.5
A126: =Prices!A14 -> Beef Cow Mineral ($/ton) | B126: =Prices!B14 -> 850 | C126: =Prices!C14 -> 935
A127: =Prices!A17 -> Oct. Heifer Calf Price ($/cwt)* | B127: =Prices!B17 -> 149.72 | C127: =Prices!C17 -> 146.7062906
A128: =Prices!A18 -> Oct. Steer Calves Price ($/cwt)* | B128: =Prices!B18 -> 165.93 | C128: =Prices!C18 -> 162.59
A129: =Prices!A22 -> Beef Cull cow ($/cwt) | B129: =Prices!B22 -> 54.25 | C129: =Prices!C22 -> 53.3218344
A131: =Prices!A25 -> * This a predicted October price for the budget year
A135: Kansas State University, Department of Agricultural Economics - www.agmanager.info
A136: Publication: AM-FMG-CowCalf | I136: =I94 -> Version- 12.7.2020

Sheet Backgrounding
A1: KSU Beef Backgrounding Budget | C1: 2021 Production Year | G1: =IF(C1=Prices!B3,TEXT(Prices!B4,"MMM-YYYY"),TEXT(Prices!C4,"MMM-YYYY")) -> (as of Dec. 7th, 2020)
L2: Click on "2021 Production Year" to change to "Five Years Out Prices"
A3: Production Efficiency Information
A4: Death Loss | B4: 0.02 | J4: CWT Produced
A5: Days in Backgrounding Lot | B5: 150 | C5: Average Daily Gain | F5: 1.25 | J5: =(E9-E10)/100 -> 1.875
A8: Gross Return | B8: Price | C8: Unit | E8: Qty | F8: Unit | J8: Total per Year
A9: Feeder Animal Sale | B9: =(IF(C1=Prices!A1,Prices!B23,Prices!C23))+((E9-738)*-0.0842) -> 149.7621 | C9: per cwt | D9: x | E9: =E10+(B5*F5) -> 737.5 | F9: lbs | I9: = | J9: =B9*(E9/100) -> 1104.495488
A10: Purchase price | B10: =(IF(C1=Prices!A1,Prices!B18,Prices!C18)) -> 165.93 | C10: per cwt | D10: x | E10: ='Cow-Calf'!E8 -> 550 | F10: lbs | I10: = | J10: =-(B10*(E10/100)) -> -912.615
A11: Death Loss | J11: =(B4*J10) -> -18.2523
A12: Other
A13: Total Gross Return | J13: =SUM(J9:J12) -> 173.6281875
A15: Variable Costs
A16: Pasture | B16: =IF(C1=Prices!A1, Prices!B12,Prices!C12) -> 20 | C16: per acre | D16: x | E16: =Feed!C20 -> 0 | F16: total acres | I16: = | J16: =B16*E16 -> 0
A17: Crop Residue | B17: =IF(C1=Prices!A1, Prices!B13,Prices!C13) -> 15 | C17: per acre | D17: x | E17: =Feed!C21 -> 0 | F17: total acres | I17: = | J17: =B17*E17 -> 0
A18: Harvested Forage | B18: =IF(C1=Prices!A1,(((Feed!C22/Feed!C25)*Prices!B10)+((Feed!C23/Feed!C25)*Prices!B9)+((Feed!C24/Feed!C25)*Prices!B11)),((Feed!C22/Feed!C25)*Prices!C10)+((Feed!C23/Feed!C25)*Prices!C9)+((Feed!C24/Feed!C25)*Prices!C11)) -> 115 | C18: per ton | D18: x | E18: =(Feed!C25/2000)*B5 -> 0.525 | F18: total tons | I18: = | J18: =B18*E18 -> 60.375
A19: Grain/Protein Supplements | B19: =IF(C1=Prices!A1,(((Feed!C28/Feed!C29)*Prices!B6)+((Feed!C27/Feed!C29)*Prices!B7)+((Feed!C26/Feed!C29)*(Prices!B5*2000)/56)),(((Feed!C28/Feed!C29)*Prices!C6)+((Feed!C27/Feed!C29)*Prices!C7)+((Feed!C26/Feed!C29)*(Prices!C5*2000)/56))) -> 180.8928571 | C19: per ton | D19: x | E19: =Feed!C29*B5 -> 2100 | F19: total lbs | I19: = | J19: =(B19/2000)*E19 -> 189.9375
A20: Mineral | B20: =IF(C1=Prices!A1,Prices!B15,Prices!C15) -> 600 | C20: per ton | D20: x | E20: =Feed!C30*B5 -> 45 | F20: total lbs | I20: = | J20: =(B20/2000)*E20 -> 13.5
A21: Other Feed | B21: 0 | C21: per unit | D21: x | E21: 0 | F21: units | I21: = | J21: =B21*E21 -> 0
A22: Labor | B22: 20 | C22: per hour | D22: x | E22: =(B5/30)*0.3 -> 1.5 | F22: hours | I22: = | J22: =B22*E22 -> 30
A23: Vet Medicine/Drugs | J23: =ROUND(7*J5,0) -> 13
A24: Marketing costs | J24: =ROUND(5*J5,0) -> 9
A25: Utilities,Gas, Fuel, Oil | J25: =ROUND(3*J5,0) -> 6
A26: Machinery, Facility/Equip. Repairs | J26: =ROUND(4*J5,0) -> 8
A27: Cash Interest Paid | J27: =ROUND(4.6*J5,0) -> 9
A28: Other variable costs | J28: =ROUND(1.25*J5,0) -> 2
A29: Total Variable Costs | J29: =SUM(J16:J28) -> 340.8125
A31: Fixed Costs
A32: Depreciation | J32: 6
A33: Taxes | J33: 1
A34: Farm/Livestock Insurance | J34: 1.5
A35: Opportunity Cost of Investment | J35: 22
A36: Other fixed costs | J36: 0
A37: Total Fixed Costs | J37: =SUM(J32:J36) -> 30.5
A39: Total Costs | J39: =J29+J37 -> 371.3125
A41: Income Over Variable Costs | J41: =J13-J29 -> -167.1843125
A42: Income Over Total Costs | J42: =J13-J39 -> -197.6843125
A44: Kansas State University, Department of Agricultural Economics - www.agmanager.info
A45: Publication: AM-FMG-Backgrounding | J45: =TEXT(Introduction!L8,"MMM. DD, YYYY") -> Version- 12.7.2020
A47: KSU Beef Backgrounding Budget
A91: Kansas State University, Department of Agricultural Economics - www.agmanager.info
A92: Publication: AM-FMG-Backgrounding | J92: =J45 -> Version- 12.7.2020
A94: KSU Beef Backgrounding Budget
A95: Budget Assumptions
A97: Backgrounding Feed Requirements | B97: (per animal unit)
B98: Qty | C98: Unit
A99: Pasture | B99: =Feed!C20 -> 0 | C99: total acres for feeding period
A100: Crop Residue | B100: =Feed!C21 -> 0 | C100: total acres for feeding period
A101: Prairie/Brome Hay | B101: =Feed!C22 -> 3.5 | C101: lbs/day
A102: Silage | B102: =Feed!C23 -> 0 | C102: lbs/day
A103: Alfalfa | B103: =Feed!C24 -> 3.5 | C103: lbs/day
A104: Total Harvested Forage | B104: =Feed!C25 -> 7 | C104: lbs/day
A105: Corn | B105: =Feed!C26 -> 7 | C105: lbs/day
A106: DDG's | B106: =Feed!C27 -> 7 | C106: lbs/day
A107: Soybean Meal | B107: =Feed!C28 -> 0 | C107: lbs/day
A108: Total Grain/Protein Supplements | B108: =Feed!C29 -> 14 | C108: lbs/day
A109: Salt and Mineral | B109: =Feed!C30 -> 0.3 | C109: lbs/day
A114: Default Backgrounding Prices
B115: =Prices!A1 -> 2021 Production Year | C115: Five Years Out
A116: =Prices!A5 -> Corn ($/bu) | B116: =Prices!B5 -> 4.25 | C116: =Prices!C5 -> 3.55
A117: =Prices!A6 -> Soybean Meal ($/ton) | B117: =Prices!B6 -> 380 | C117: =Prices!C6 -> 341
A118: =Prices!A7 -> DDGS ($/ton) | B118: =Prices!B7 -> 210 | C118: =Prices!C7 -> 175.4117647
A119: =Prices!A9 -> Silage ($/ton) | B119: =Prices!B9 -> 34 | C119: =Prices!C9 -> 28.4
A120: =Prices!A10 -> Prairie Hay ($/ton) | B120: =Prices!B10 -> 70 | C120: =Prices!C10 -> 58.47058824
A121: =Prices!A11 -> Alfalfa ($/ton) | B121: =Prices!B11 -> 160 | C121: =Prices!C11 -> 133.6470588
A122: =Prices!A15 -> Other Beef Mineral ($/ton) | B122: =Prices!B15 -> 600 | C122: =Prices!C15 -> 660
A123: =Prices!A18 -> Oct. Steer Calves Price ($/cwt)* | B123: =Prices!B18 -> 165.93 | C123: =Prices!C18 -> 162.59
A124: =Prices!A23 -> One-Year-Out March Feeder Steers ($/cwt)****** | B124: =Prices!B23 -> 149.72 | C124: =Prices!C23 -> 138.2015
A126: =Prices!A25 -> * This a predicted October price for the budget year
A127: =Prices!A29 -> ******This is a predicted one-year-out March feeder steer price used in the backgrounding budget
A131: Kansas State University, Department of Agricultural Economics - www.agmanager.info
A132: Publication: AM-FMG-Backgrounding | J132: =J92 -> Version- 12.7.2020

Sheet Stocker
A1: KSU Beef Stocker Budget | C1: 2021 Production Year | G1: =IF(C1=Prices!B3,TEXT(Prices!B4,"MMM-YYYY"),TEXT(Prices!C4,"MMM-YYYY")) -> (as of Dec. 7th, 2020)
L2: Click on "2021 Production Year" to change to "Five Years Out Prices"
A3: Production Efficiency Information
A4: Death Loss | B4: 0.01 | I4: CWT Produced
A5: Days on Grass | B5: 120 | C5: Average Daily Gain | F5: 1.25 | J5: =(E9-E10)/100 -> 1.5
A8: Gross Return | B8: Price | C8: Unit | E8: Qty | F8: Unit | J8: Total per Year
A9: Feeder Sale | B9: =IF(C1=Prices!A1,Prices!B20,Prices!C20)+((E9-888)*-0.0842) -> 142.3421 | C9: per cwt | D9: x | E9: =E10+(B5*F5) -> 887.5 | F9: lbs | I9: = | J9: =B9*(E9/100) -> 1263.286138
A10: Purchase price | B10: =IF(C1=Prices!A1,Prices!B19,Prices!C19)+((E10-750)*-0.0842) -> 146.6925 | C10: per cwt | D10: x | E10: =Backgrounding!E9 -> 737.5 | F10: lbs | I10: = | J10: =-(B10*(E10/100)) -> -1081.857188
A11: Death Loss | J11: =(B4*J10) -> -10.81857187
A12: Other
A13: Total Gross Return | J13: =SUM(J9:J12) -> 170.6103781
A15: Variable Costs
A16: Pasture | B16: =IF(C1=Prices!A1, Prices!B12,Prices!C12) -> 20 | C16: per acre | D16: x | E16: =Feed!I5 -> 2.5 | F16: total acres | I16: = | J16: =B16*E16 -> 50
A17: Crop Residue | B17: =IF(C1=Prices!A1, Prices!B13,Prices!C13) -> 15 | C17: per acre | D17: x | E17: =Feed!I6 -> 0 | F17: total acres | I17: = | J17: =B17*E17 -> 0
A18: Harvested Forage | B18: =IF(Feed!I10>0,(IF(C1=Prices!A1,(((Feed!I7/Feed!I10)*Prices!B10)+((Feed!I8/Feed!I10)*Prices!B9)+((Feed!I9/Feed!I10)*Prices!B11)),((Feed!I7/Feed!I10)*Prices!C10)+((Feed!I8/Feed!I10)*Prices!C9)+((Feed!I9/Feed!I10)*Prices!C11))),0) -> 0 | C18: per ton | D18: x | E18: =Feed!I10 -> 0 | F18: total tons | I18: = | J18: =B18*E18 -> 0
A19: Grain/Protein Supplements | B19: =IF(Feed!I14>0,(IF(C1=Prices!A1,(((Feed!I13/Feed!I14)*Prices!B6)+((Feed!I12/Feed!I14)*Prices!B7)+((Feed!I11/Feed!I14)*(Prices!B5*2000)/56)),(((Feed!I13/Feed!I14)*Prices!C6)+((Feed!I12/Feed!I14)*Prices!C7)+((Feed!I11/Feed!I14)*(Prices!C5*2000)/56)))),0) -> 0 | C19: per ton | D19: x | E19: =Feed!I14 -> 0 | F19: total lbs | I19: = | J19: =(B19/2000)*E19 -> 0
A20: Mineral | B20: =IF(C1=Prices!A1,Prices!B15,Prices!C15) -> 600 | C20: per ton | D20: x | E20: =Feed!I15 -> 12 | F20: total lbs | I20: = | J20: =(B20/2000)*E20 -> 3.6
A21: Other Feed | B21: 0 | C21: per unit | D21: x | E21: 0 | F21: units | I21: = | J21: =B21*E21 -> 0
A22: Labor | B22: 20 | C22: per hour | D22: x | E22: =0.2*(B5/30) -> 0.8 | F22: hours | I22: = | J22: =B22*E22 -> 16
A23: Vet Medicine/Drugs | J23: =ROUND(4*J5,0) -> 6
A24: Marketing costs | J24: 9
A25: Utilities,Gas, Fuel, Oil | J25: =ROUND(3*J5,0) -> 5
A26: Machinery, Facility/Equip. Repairs | J26: =ROUND(4.5*J5,0) -> 7
A27: Cash Interest Paid | J27: =ROUND(4*J5,0) -> 6
A28: Other variable costs | J28: =ROUND(1*J5,0) -> 2
A29: Total Variable Costs | J29: =SUM(J16:J28) -> 104.6
A31: Fixed Costs
A32: Depreciation | J32: 5
A33: Taxes | J33: 1
A34: Farm/Livestock Insurance | J34: 1
A35: Opportunity Cost of Investment | J35: 15
A36: Other fixed costs | J36: 0
A37: Total Fixed Costs | J37: =SUM(J32:J36) -> 22
A39: Total Costs | J39: =J29+J37 -> 126.6
A41: Income Over Variable Costs | J41: =J13-J29 -> 66.01037813
A42: Income Over Total Costs | J42: =J13-J39 -> 44.01037813
A44: Kansas State University, Department of Agricultural Economics - www.agmanager.info
A45: Publication: AM-FMG-Stocker | I45: =TEXT(Introduction!L8,"MMM. DD, YYYY") -> Version- 12.7.2020
A47: KSU Beef Stocker Budget
A91: Kansas State University, Department of Agricultural Economics - www.agmanager.info
A92: Publication: AM-FMG-Stocker | I92: =I45 -> Version- 12.7.2020
A94: KSU Beef Stocker Budget
A95: Budget Assumptions
A97: Stocker Feed Requirements | B97: (per animal unit)
B98: Qty | C98: Unit
A99: Pasture | B99: =Feed!I5 -> 2.5 | C99: total acres for feeding period
A100: Crop Residue | B100: =Feed!I6 -> 0 | C100: total acres for feeding period
A101: Prairie/Brome Hay | B101: =Feed!I7 -> 0 | C101: total tons for feeding period
A102: Silage | B102: =Feed!I8 -> 0 | C102: total tons for feeding period
A103: Alfalfa | B103: =Feed!I9 -> 0 | C103: total tons for feeding period
A104: Total Harvested Forage | B104: =Feed!I10 -> 0 | C104: total tons for feeding period
A105: Corn | B105: =Feed!I11 -> 0 | C105: total pounds for feeding period
A106: DDG's | B106: =Feed!I12 -> 0 | C106: total pounds for feeding period
A107: Soybean Meal | B107: =Feed!I13 -> 0 | C107: total pounds for feeding period
A108: Total Grain/Protein Supplements | B108: =Feed!I14 -> 0 | C108: total pounds for feeding period
A109: Salt and Mineral | B109: =Feed!I15 -> 12 | C109: total pounds for feeding period
A114: Default Stocker Prices
B115: =Prices!A1 -> 2021 Production Year | C115: Five Years Out
A116: =Prices!A5 -> Corn ($/bu) | B116: =Prices!B5 -> 4.25 | C116: =Prices!C5 -> 3.55
A117: =Prices!A6 -> Soybean Meal ($/ton) | B117: =Prices!B6 -> 380 | C117: =Prices!C6 -> 341
A118: =Prices!A7 -> DDGS ($/ton) | B118: =Prices!B7 -> 210 | C118: =Prices!C7 -> 175.4117647
A119: =Prices!A12 -> Pasture Rental ($/acre) | B119: =Prices!B12 -> 20 | C119: =Prices!C12 -> 22
A120: =Prices!A13 -> Crop Residue ($/acre) | B120: =Prices!B13 -> 15 | C120: =Prices!C13 -> 16.5
A121: =Prices!A15 -> Other Beef Mineral ($/ton) | B121: =Prices!B15 -> 600 | C121: =Prices!C15 -> 660
A122: =Prices!A19 -> March Feeder Steers ($/cwt)** | B122: =Prices!B19 -> 145.64 | C122: =Prices!C19 -> 138.2015
A123: =Prices!A20 -> July Feeder Steers ($/cwt)*** | B123: =Prices!B20 -> 142.3 | C123: =Prices!C20 -> 145.12
A125: =Prices!A26 -> ** This is a predicted price for the production year
A126: =Prices!A27 -> ***This is a predicted price for the production year
A133: Kansas State University, Department of Agricultural Economics - www.agmanager.info
A134: Publication: AM-FMG-Stocker | I134: =I92 -> Version- 12.7.2020

Sheet Feedlot
A1: KSU Beef Finishing Budget | C1: 2021 Production Year | G1: =IF(C1=Prices!B3,TEXT(Prices!B4,"MMM-YYYY"),TEXT(Prices!C4,"MMM-YYYY")) -> (as of Dec. 7th, 2020)
L2: Click on "2021 Production Year" to change to "Five Years Out Prices"
A3: Production Efficiency Information
A4: Death Loss | B4: 0.015 | I4: CWT Produced
A5: Days on Feed | B5: 150 | C5: Average Daily Gain | F5: 3.7 | J5: =(E8-E9)/100 -> 5.55
A7: Gross Return | B7: Price | C7: Unit | E7: Qty | F7: Unit | J7: Total per Year
A8: Fed Animal Sale | B8: =IF(C1=Prices!A1,Prices!B21,Prices!C21)+((E8-1400)*-0.1045) -> 112.16375 | C8: per cwt | D8: x | E8: =E9+(B5*F5) -> 1442.5 | F8: lbs | I8: = | J8: =B8*(E8/100) -> 1617.962094
A9: Purchase price | B9: =IF(C1=Prices!A1,Prices!B20,Prices!C20)+((E9-888)*-0.0842) -> 142.3421 | C9: per cwt | D9: x | E9: =Stocker!E9 -> 887.5 | F9: lbs | I9: = | J9: =-(B9*(E9/100)) -> -1263.286138
A10: Death Loss | J10: =(B4*J9) -> -18.94929206
A11: Other
A12: Total Gross Return | J12: =SUM(J8:J11) -> 335.7266642
A14: Variable Costs
A15: Harvested Forage | B15: =IF(C1=Prices!A1,(((Feed!I20/Feed!I23)*Prices!B10)+((Feed!I21/Feed!I23)*Prices!B9)+((Feed!I22/Feed!I23)*Prices!B11)),((Feed!I20/Feed!I23)*Prices!C10)+((Feed!I21/Feed!I23)*Prices!C9)+((Feed!I22/Feed!I23)*Prices!C11)) -> 115 | C15: per ton | D15: x | E15: =(Feed!I23*Feedlot!B5)/2000 -> 0.225 | F15: total tons | I15: = | J15: =B15*E15 -> 25.875
A16: Grain/Protein Supplements | B16: =IF(C1=Prices!A1,(((Feed!I26/Feed!I27)*Prices!B6)+((Feed!I25/Feed!I27)*Prices!B7)+((Feed!I24/Feed!I27)*(Prices!B5*2000)/56)),(((Feed!I26/Feed!I27)*Prices!C6)+((Feed!I25/Feed!I27)*Prices!C7)+((Feed!I24/Feed!I27)*(Prices!C5*2000)/56))) -> 165.0162338 | C16: per ton | D16: x | E16: =Feed!I27*B5 -> 3300 | F16: total lbs | I16: = | J16: =(B16/2000)*E16 -> 272.2767857
A17: Mineral | B17: =IF(C1=Prices!A1,Prices!B15, Prices!C15) -> 600 | C17: per ton | D17: x | E17: =Feed!I28*B5 -> 75 | F17: total lbs | I17: = | J17: =(B17/2000)*E17 -> 22.5
A18: Other Feed | B18: 0 | C18: per unit | D18: x | E18: 0 | F18: units | I18: = | J18: =B18*E18 -> 0
A19: Labor | B19: 20 | C19: per hour | D19: x | E19: 1.5 | F19: hours | I19: = | J19: =B19*E19 -> 30
A20: Vet Medicine/Drugs | J20: 5
A21: Marketing costs | J21: 10
A22: Utilities,Gas, Fuel, Oil | J22: =ROUND(1.1*J5,0) -> 6
A23: Machinery, Facility/Equip. Repairs | J23: =ROUND(1*J5,0) -> 6
A24: Cash Interest Paid | J24: =ROUND(6.5*J5,0) -> 36
A25: Other variable costs | J25: =ROUND(0.5*J5,0) -> 3
A26: Total Variable Costs | J26: =SUM(J15:J25) -> 416.6517857
A28: Fixed Costs
A29: Depreciation | J29: 9
A30: Taxes | J30: 2
A31: Farm/Livestock Insurance | J31: 3.5
A32: Opportunity Cost of Investment | J32: 36
A33: Other fixed costs | J33: 0
A34: Total Fixed Costs | J34: =SUM(J29:J32) -> 50.5
A36: Total Costs | J36: =J26+J34 -> 467.1517857
A38: Income Over Variable Costs | J38: =J12-J26 -> -80.92512153
A39: Income Over Total Costs | J39: =J12-J36 -> -131.4251215
A43: Kansas State University, Department of Agricultural Economics - www.agmanager.info
A44: Publication: AM-FMG-Finishing | I44: =Introduction!L8 -> Version- 12.7.2020
A46: KSU Beef Finishing Budget
A90: Kansas State University, Department of Agricultural Economics - www.agmanager.info
A91: Publication: AM-FMG-Finishing | I91: =I44 -> Version- 12.7.2020
A93: KSU Beef Finishing Budget
A94: Budget Assumptions
A96: Finishing Feed Requirements | B96: (per animal unit)
B97: Qty | C97: Unit
A98: Prairie/Brome Hay | B98: =Feed!I20 -> 1.5 | C98: lbs/day
A99: Silage | B99: =Feed!I21 -> 0 | C99: lbs/day
A100: Alfalfa | B100: =Feed!I22 -> 1.5 | C100: lbs/day
A101: Total Harvested Forage | B101: =Feed!I23 -> 3 | C101: lbs/day
A102: Corn | B102: =Feed!I24 -> 17 | C102: lbs/day
A103: DDG's | B103: =Feed!I25 -> 5 | C103: lbs/day
A104: Soybean Meal | B104: =Feed!I26 -> 0 | C104: lbs/day
A105: Total Grain/Protein Supplements | B105: =Feed!I27 -> 22 | C105: lbs/day
A106: Salt and Mineral | B106: =Feed!I28 -> 0.5 | C106: lbs/day
A113: Default Beef Finishing Prices
B114: =Prices!A1 -> 2021 Production Year | C114: Five Years Out
A115: =Prices!A5 -> Corn ($/bu) | B115: =Prices!B5 -> 4.25 | C115: =Prices!C5 -> 3.55
A116: =Prices!A6 -> Soybean Meal ($/ton) | B116: =Prices!B6 -> 380 | C116: =Prices!C6 -> 341
A117: =Prices!A7 -> DDGS ($/ton) | B117: =Prices!B7 -> 210 | C117: =Prices!C7 -> 175.4117647
A118: =Prices!A9 -> Silage ($/ton) | B118: =Prices!B9 -> 34 | C118: =Prices!C9 -> 28.4
A119: =Prices!A10 -> Prairie Hay ($/ton) | B119: =Prices!B10 -> 70 | C119: =Prices!C10 -> 58.47058824
A120: =Prices!A11 -> Alfalfa ($/ton) | B120: =Prices!B11 -> 160 | C120: =Prices!C11 -> 133.6470588
A121: =Prices!A15 -> Other Beef Mineral ($/ton) | B121: =Prices!B15 -> 600 | C121: =Prices!C15 -> 660
A122: =Prices!A20 -> July Feeder Steers ($/cwt)*** | B122: =Prices!B20 -> 142.3 | C122: =Prices!C20 -> 145.12
A123: =Prices!A21 -> Dec. Fed Cattle ($/cwt)**** | B123: =Prices!B21 -> 116.605 | C123: =Prices!C21 -> 114.61
A125: =Prices!A27 -> ***This is a predicted price for the production year
A126: =Prices!A28 -> ****This a predicted price for a Dec. sale of a fed animal
A131: Kansas State University, Department of Agricultural Economics - www.agmanager.info
A132: Publication: AM-FMG-Finishing | I132: =I91 -> Version- 12.7.2020
